bitfinex/quotes_ETHUSD_20220310
["timestamp","ask_amount","ask_price","bid_price","bid_amount"]
[1646877961170,3.8286148,2673.8,2673.1,0.0714827]
[1646877961371,0.021001,2673.8,2673.1,0.0714827]
[1646877961675,0.021001,2673.8,2673.4,1.16750852]
[1646877962719,0.021001,2673.8,2673.1,0.088444]
[1646877962919,0.93593,2673.6,2673.1,0.088444]
[1646877963122,1.8718496,2673.6,2673.1,0.088444]
[1646877963923,1.8718496,2673.6,2673.2,1.05343577]
[1646877964127,1.8718496,2673.6,2673.3,0.07619671]
[1646877965834,1.8927206,2673.8,2673.3,0.07619671]
[1646877966575,0.021001,2673.8,2673.3,0.07619671]
[1646877968779,0.021001,2673.8,2673.0,0.15794345]
[1646877968780,0.021001,2673.8,2673.1,0.08707842]
[1646877968983,0.93602,2673.6,2673.1,0.08707842]
[1646877969180,0.93602,2673.6,2673.0,0.15794345]
[1646877970318,0.93602,2673.6,2673.0,1.16802747]
[1646877973324,0.3,2673.7,2673.0,1.16802747]
[1646877973524,0.021001,2673.8,2673.0,1.16802747]
[1646877973724,0.021001,2673.8,2673.1,0.07689689]
[1646877973979,0.02043575,2673.5,2673.1,0.07689689]
[1646877974568,7.821e-05,2673.6,2673.2,3.7]
[1646877974773,0.021001,2673.8,2673.5,0.06130724]
[1646877974970,0.570171,2674.0,2673.6,1.01450675]
[1646877975169,0.86721274,2674.0,2673.6,1.01450675]
[1646877975377,0.86721274,2674.0,2673.5,0.06130724]
[1646877975573,0.87017105,2674.0,2673.5,0.06130724]
[1646877975774,1.80594105,2674.0,2673.5,0.06130724]
[1646877976374,1.80298274,2674.0,2673.5,0.06130724]
[1646877976574,1.19391911,2673.9,2673.5,0.06130724]
[1646877976975,1.84813147,2674.0,2673.5,0.06130724]
[1646877977575,1.84517278,2674.0,2673.5,0.06130724]
[1646877977820,1.8482565,2674.0,2673.5,0.06130724]
[1646877978019,1.80606646,2674.0,2673.5,0.06130724]
[1646877978622,1.80298274,2674.0,2673.5,0.06130724]
[1646877979023,1.80606646,2674.0,2673.6,1.55110796]
[1646877979422,0.13448817,2673.9,2673.6,1.55110796]
[1646877979825,0.13448817,2673.9,2673.7,0.07369304]
[1646877980026,0.13448817,2673.9,2673.8,1.55110796]
[1646877981673,0.15703617,2673.9,2673.8,1.55110796]
[1646877981873,0.15703617,2673.9,2673.8,1.55101045]
[1646877982073,0.15703617,2673.9,2673.6,1.55101045]
[1646877982980,0.029168,2673.8,2673.6,1.55101045]
[1646877983182,1.87208,2673.7,2673.5,0.06130724]
[1646877983380,1.87208,2673.7,2673.1,1.0]
[1646877983580,1.87208,2673.7,2673.2,1.55124251]
[1646877983581,0.029168,2673.6,2673.2,1.55124251]
[1646877983979,0.93602,2673.5,2673.2,1.55124251]
[1646877984181,0.93602,2673.5,2673.3,1.55124251]
[1646877984381,0.3,2673.7,2673.4,1.55124251]
[1646877984583,0.3,2673.7,2673.5,1.55124251]
[1646877984881,0.3,2673.7,2673.6,1.55124251]
[1646877985083,0.3,2673.7,2673.0,1.15794345]
[1646877985084,0.37271122,2673.8,2673.4,1.23083282]
[1646877985323,0.37271122,2673.8,2673.5,1.55124251]
[1646877985522,1.30853122,2673.8,2673.5,1.55124251]
[1646877986122,0.93582,2673.8,2673.5,1.55124251]
[1646877986522,0.59107241,2674.0,2673.6,0.08169301]
[1646877986722,0.59107241,2674.0,2673.7,1.55124251]
[1646877987023,2.46279241,2674.0,2673.7,1.55124251]
[1646877987222,2.45993374,2674.0,2673.7,1.55124251]
[1646877987425,2.46279262,2674.0,2673.7,1.55124251]
[1646877987629,2.76279262,2674.0,2673.7,1.55124251]
[1646877987825,1.87192,2673.9,2673.7,1.55124251]
[1646877988124,2.8078747,2673.9,2673.7,1.55124251]
[1646877988325,0.3,2673.8,2673.7,1.55124251]
[1646877988525,0.3,2673.8,2673.2,1.62159066]
[1646877988526,0.326457,2673.8,2673.2,1.62159066]
[1646877988729,0.029168,2673.6,2673.3,1.55124251]
[1646877989473,0.93592,2673.7,2673.4,1.55124251]
[1646877989672,0.326457,2673.8,2673.4,1.55124251]
[1646877989875,0.026457,2673.8,2673.4,1.55124251]
[1646877990283,0.93586,2673.7,2673.4,1.55124251]
[1646877990480,0.93586,2673.7,2673.5,1.55124251]
[1646877990680,0.93586,2673.7,2673.6,1.55124251]
[1646877990883,1.23586,2673.7,2673.3,1.55124251]
[1646877991084,0.029168,2673.6,2673.3,1.55124251]
[1646877991383,0.029168,2673.6,2673.4,1.55124251]
[1646877996674,0.026457,2673.8,2673.4,1.55124251]
[1646877996872,0.021001,2673.9,2673.4,1.55124251]
[1646877997672,0.021001,2673.9,2673.7,0.94450517]
[1646877997872,0.021001,2673.9,2673.8,1.55124251]
[1646877999076,0.021001,2673.9,2673.4,1.55124251]
[1646877999278,0.029168,2673.8,2673.4,1.55124251]
[1646878001034,1.901048,2673.8,2673.4,1.55124251]
[1646878002035,0.029168,2673.6,2673.4,1.55124251]
[1646878002233,0.93606,2673.5,2673.1,1.0]
[1646878002532,0.965228,2673.5,2673.2,1.55121673]
[1646878003136,0.965228,2673.5,2673.3,1.55121673]
[1646878003337,0.965228,2673.5,2673.0,1.15794345]
[1646878003338,0.965228,2673.5,2673.4,1.55121673]
[1646878003637,0.965228,2673.5,2673.1,1.55121673]
[1646878003835,0.965228,2673.5,2673.2,1.55121673]
[1646878004070,0.965228,2673.5,2673.3,1.55121673]
[1646878004271,1.265228,2673.5,2673.4,1.55121673]
[1646878004474,2.265228,2673.5,2673.4,1.55121673]
[1646878004672,1.265228,2673.5,2673.4,1.55121673]
[1646878004874,0.3,2673.5,2673.1,1.55121673]
[1646878005072,0.3,2673.5,2673.2,1.55121673]
[1646878005271,0.3,2673.5,2673.3,1.55121673]
[1646878005272,0.029168,2673.5,2673.3,1.55121673]
[1646878005476,0.029168,2673.5,2673.4,1.55121673]
[1646878005678,0.021001,2673.6,2673.0,1.23108244]
[1646878005679,0.00086347,2673.4,2673.0,1.23108244]
[1646878005879,0.00086347,2673.4,2673.1,2.78059619]
[1646878006081,0.00086347,2673.4,2673.2,1.62697358]
[1646878006279,0.00086347,2673.4,2673.3,5.12998681]
[1646878006778,0.00086347,2673.4,2673.3,1.62998681]
[1646878007080,0.00086347,2673.4,2673.3,1.55118706]
[1646878007281,0.00086347,2673.4,2673.1,1.55118706]
[1646878007478,0.029168,2673.2,2673.1,1.55118706]
[1646878010727,0.87868822,2673.2,2673.1,1.5501867]
[1646878013583,0.87868822,2673.2,2673.0,0.86569512]
[1646878013781,1.965308,2673.1,2673.0,0.86569512]
[1646878013980,1.965308,2673.1,2672.4,1.0]
[1646878013981,2.901599,2673.1,2672.4,1.0]
[1646878014180,0.029168,2672.9,2672.4,1.0]
[1646878014384,0.029168,2672.8,2672.4,1.0]
[1646878014585,0.029168,2672.6,2672.4,1.0]
[1646878014783,0.029168,2672.6,2672.1,1.03792186]
[1646878014986,0.029168,2672.6,2672.0,0.67811216]
[1646878015627,1.87274,2672.5,2671.9,0.67811216]
[1646878015828,0.04841598,2672.4,2671.8,0.67811216]
[1646878016030,1.05452949,2672.4,2671.7,0.67811216]
[1646878016232,1.3,2672.2,2671.6,1.9692739]
[1646878016429,1.05452949,2672.4,2672.2,0.35517701]
[1646878016629,1.87316,2672.3,2672.2,0.35517701]
[1646878016832,1.87316,2672.3,2671.5,0.67811216]
[1646878017031,0.98714314,2672.2,2671.3,0.67811216]
[1646878017230,0.05418793,2672.0,2671.3,0.67811216]
[1646878017530,1.0,2672.3,2671.2,0.0892712]
[1646878017531,1.0,2672.3,2671.5,0.67811216]
[1646878017730,4.7120989,2672.5,2671.5,0.67811216]
[1646878017928,4.7120989,2672.5,2671.3,3.8691]
[1646878017929,4.7120989,2672.5,2671.6,0.07671089]
[1646878018130,0.9364561,2672.4,2671.6,0.07671089]
[1646878018531,0.04501581,2672.3,2671.9,0.90674553]
[1646878018735,1.23638,2672.2,2671.6,0.07671089]
[1646878018987,1.87313,2672.0,2671.6,0.07671089]
[1646878019781,2.22441952,2672.0,2671.3,2.17458686]
[1646878019982,2.22441952,2672.0,2671.3,1.02958686]
[1646878020382,0.9366506,2671.9,2671.3,1.02958686]
[1646878020781,2.22441952,2672.0,2671.3,1.70769902]
[1646878020782,3.22441952,2672.0,2671.3,1.70769902]
[1646878021082,2.22441952,2672.0,2671.3,1.70769902]
[1646878021285,3.22441952,2672.0,2671.3,1.02958686]
[1646878021482,2.22441952,2672.0,2671.3,1.70769902]
[1646878021680,3.22441952,2672.0,2671.3,1.70769902]
[1646878022082,2.22441952,2672.0,2671.3,1.70769902]
[1646878022281,3.22441952,2672.0,2671.3,1.70769902]
[1646878022486,0.965798,2671.8,2671.3,1.02958686]
[1646878022726,1.265798,2671.8,2671.3,1.02958686]
[1646878023930,0.029168,2671.7,2671.3,1.02958686]
[1646878024327,1.902508,2671.7,2671.3,1.02958686]
[1646878025832,1.902508,2671.7,2671.1,0.07420519]
[1646878026030,0.029168,2671.5,2671.1,0.07420519]
[1646878026229,0.93677,2671.4,2671.1,0.07420519]
[1646878026484,0.93677,2671.4,2670.9,1.2436]
[1646878026485,0.93677,2671.4,2670.9,0.06949611]
[1646878026871,0.965938,2671.4,2670.9,0.06949611]
[1646878027272,0.965938,2671.4,2670.9,0.96196857]
[1646878027674,1.9027521,2671.4,2670.9,0.96196857]
[1646878027872,0.029168,2671.2,2670.9,0.96196857]
[1646878028373,0.93679,2671.1,2670.7,0.07500372]
[1646878028982,0.965958,2671.1,2670.5,0.0968865]
[1646878029179,0.965958,2671.1,2670.5,0.00889958]
[1646878029180,0.029168,2670.6,2670.5,0.00889958]
[1646878029379,0.966178,2670.6,2670.5,0.00889958]
[1646878029777,1.266178,2670.6,2670.5,0.00889958]
[1646878030334,0.93701,2670.6,2670.5,0.00889958]
[1646878030729,0.93701,2670.6,2670.2,0.06900834]
[1646878030927,0.966178,2670.6,2670.2,0.06900834]
[1646878031128,0.966178,2670.6,2670.3,0.00890022]
[1646878031929,0.966178,2670.6,2670.0,0.08262497]
[1646878032129,0.029168,2670.5,2670.2,0.0098904]
[1646878032527,1.23701,2670.6,2670.2,0.0098904]
[1646878032732,2.87402,2670.7,2670.5,1.05858442]
[1646878032733,0.3,2670.7,2670.5,1.05858442]
[1646878032930,0.3,2670.7,2670.2,0.0098904]
[1646878033132,0.029168,2670.7,2670.0,0.08262497]
[1646878033538,0.029168,2670.7,2670.1,0.00989059]
[1646878033734,0.029168,2670.7,2670.2,1.55255629]
[1646878033984,0.029168,2670.7,2670.4,1.07600812]
[1646878034175,0.029168,2670.7,2670.5,1.55255629]
[1646878034573,0.029168,2670.7,2670.0,0.00587121]
[1646878034574,0.029168,2670.6,2670.2,0.0098904]
[1646878034777,0.029168,2670.6,2670.3,1.55270844]
[1646878035581,0.029168,2670.6,2670.0,0.09432129]
[1646878035781,0.029168,2670.6,2670.2,0.0097915]
[1646878035980,0.029168,2670.6,2670.3,1.55272697]
[1646878036382,1.15505828,2670.6,2670.4,2.47605572]
[1646878036582,0.3,2670.8,2670.5,2.69140253]
[1646878036784,0.021001,2670.9,2670.5,1.0488608]
[1646878036985,0.85533504,2671.1,2670.6,1.55256822]
[1646878036986,0.57633604,2671.1,2670.6,1.55256822]
[1646878037182,0.57633604,2671.1,2670.7,0.0852001]
[1646878037183,0.55533504,2671.1,2670.7,0.0852001]
[1646878037382,0.55533504,2671.1,2670.8,1.55256822]
[1646878037581,0.55533504,2671.1,2670.9,0.07224761]
[1646878037833,0.55533504,2671.1,2670.5,1.0]
[1646878037834,0.029168,2671.0,2670.5,1.0]
[1646878038232,0.029168,2670.7,2670.6,0.07194262]
[1646878038433,0.029168,2670.7,2670.5,1.00979042]
[1646878038832,0.029168,2670.6,2670.5,0.00979042]
[1646878039232,0.9662867,2670.6,2670.0,0.08647571]
[1646878039436,0.93714,2670.5,2670.1,1.5526098]
[1646878039636,0.029168,2670.3,2670.1,1.5526098]
[1646878039832,0.029168,2670.3,2670.0,0.08647571]
[1646878040032,0.029168,2670.1,2670.0,0.08647571]
[1646878040236,0.029168,2670.1,2670.0,0.00587121]
[1646878042173,0.59528099,2670.1,2670.0,0.00587121]
[1646878042575,0.89528099,2670.1,2670.0,0.00587121]
[1646878043174,1.89528099,2670.1,2670.0,0.00587121]
[1646878043375,1.86611299,2670.1,2670.0,0.00587121]
[1646878043575,1.89189199,2670.1,2670.0,0.00587121]
[1646878044175,0.89189199,2670.1,2670.0,0.00587121]
[1646878044976,0.56611299,2670.1,2670.0,0.00587121]
[1646878045434,0.56611299,2670.1,2670.0,2.53652075]
[1646878045632,0.56611299,2670.1,2670.0,2.61052615]
[1646878045833,0.56611299,2670.1,2670.0,1.63269666]
[1646878046632,0.56611299,2670.1,2670.0,1.55869126]
[1646878046833,0.56611299,2670.1,2670.0,2.7887123]
[1646878047636,0.021001,2670.5,2670.1,4.13222598]
[1646878047833,0.02308,2670.5,2670.3,0.07991748]
[1646878048035,0.021001,2670.8,2670.5,0.07687025]
[1646878048236,0.965988,2670.9,2670.5,0.07687025]
[1646878048436,0.965988,2670.9,2670.2,0.07334365]
[1646878048634,0.029168,2670.8,2670.4,0.08770848]
[1646878048835,0.029168,2670.8,2670.5,1.55243867]
[1646878049272,0.029168,2670.8,2670.4,0.08770848]
[1646878049474,1.903068,2670.8,2670.3,0.00940538]
[1646878049671,1.903068,2670.8,2670.4,1.5525063]
[1646878050072,0.966098,2670.8,2670.4,1.5525063]
[1646878050271,0.029168,2670.7,2670.1,2.34418189]
[1646878050477,0.029168,2670.7,2670.3,0.00782069]
[1646878050675,0.02815949,2670.6,2670.4,1.55250457]
[1646878051077,0.02815949,2670.6,2670.3,0.00782069]
[1646878051277,0.02815949,2670.6,2670.2,0.08329814]
[1646878051675,0.029168,2670.5,2670.3,1.55258412]
[1646878052378,0.966138,2670.5,2670.3,1.55258412]
[1646878053027,0.02815949,2670.6,2670.4,5.13041048]
[1646878053230,0.017501,2670.8,2670.5,1.63444147]
[1646878053430,0.017501,2670.8,2670.2,3.5]
[1646878053431,0.017501,2670.9,2670.6,1.63547967]
[1646878053632,0.017501,2671.0,2670.7,0.08122651]
[1646878053831,0.55533504,2671.1,2670.3,0.09032944]
[1646878054031,0.55533504,2671.1,2670.4,1.55250747]
[1646878054032,0.029168,2670.8,2670.4,1.55250747]
[1646878054233,0.029168,2670.8,2670.5,0.08715846]
[1646878054433,0.029168,2670.8,2670.4,0.00816914]
[1646878054831,1.0,2670.6,2670.2,0.07440679]
[1646878055036,0.029168,2670.5,2670.3,1.5525705]
[1646878055232,0.029168,2670.5,2670.3,1.56073979]
[1646878055433,0.029168,2670.5,2670.4,1.5525705]
[1646878056232,1.0,2670.6,2670.2,1.5525705]
[1646878056486,0.29845398,2670.7,2670.4,0.06875965]
[1646878056674,0.29845398,2670.7,2670.5,1.5525705]
[1646878057678,0.017501,2670.7,2670.5,1.5525705]
[1646878057875,0.017501,2670.9,2670.6,0.07877061]
[1646878058174,0.017501,2670.9,2670.7,1.5525705]
[1646878058974,0.017501,2670.9,2670.5,0.09838995]
[1646878059273,0.93689,2670.7,2670.6,1.5524675]
[1646878060075,0.93689,2670.7,2670.5,0.07182305]
[1646878060333,0.966058,2670.7,2670.6,1.5524675]
[1646878060527,0.93689,2670.7,2670.6,1.5524675]
[1646878060929,0.962257,2670.7,2670.6,1.5524675]
[1646878061331,1.962257,2670.7,2670.6,1.5524675]
[1646878061630,0.962257,2670.7,2670.6,1.5524675]
[1646878061830,0.962257,2670.7,2670.5,1.5524675]
[1646878062030,0.962257,2670.7,2670.6,1.5524675]
[1646878062330,1.262257,2670.7,2670.6,1.5524675]
[1646878062531,1.262257,2670.7,2670.4,0.00810932]
[1646878062730,0.025367,2670.7,2670.4,0.08728337]
[1646878062934,0.017501,2670.8,2670.4,0.08728337]
[1646878063330,0.017501,2670.8,2670.5,1.5524675]
[1646878063532,0.93682,2671.0,2670.6,3.5]
[1646878063730,0.017501,2670.9,2670.7,0.08427248]
[1646878063986,0.029168,2671.0,2670.7,0.08427248]
[1646878064375,0.029168,2671.0,2670.8,1.5524675]
[1646878067280,0.029168,2671.0,2670.9,1.5524675]
[1646878067478,0.965928,2671.0,2670.9,1.5524675]
[1646878067724,0.965928,2671.0,2670.6,1.5524675]
[1646878067928,0.965928,2671.0,2670.7,1.5524675]
[1646878068129,0.029168,2670.9,2670.8,1.5524675]
[1646878069828,0.029168,2670.9,2670.6,1.5524675]
[1646878070029,0.029168,2670.9,2670.7,1.5524675]
[1646878070227,0.029168,2670.8,2670.5,0.00889959]
[1646878070431,0.93693,2670.7,2670.6,1.55244131]
[1646878070636,1.23693,2670.7,2670.6,1.55244131]
[1646878070832,1.266098,2670.7,2670.6,0.65061348]
[1646878071032,1.266098,2670.7,2670.4,0.00889991]
[1646878071879,1.266098,2670.7,2670.1,1.81033814]
[1646878072282,0.029168,2670.5,2670.3,0.00989003]
[1646878072484,0.93707,2670.4,2670.3,0.00989003]
[1646878072680,0.966238,2670.4,2670.3,0.00989003]
[1646878072880,1.266238,2670.4,2670.3,0.00989003]
[1646878073083,1.266238,2670.4,2670.1,1.13222598]
[1646878073485,1.266238,2670.4,2670.1,1.14211675]
[1646878073486,0.029168,2670.2,2670.1,1.14211675]
[1646878074283,0.029168,2670.2,2670.1,1.13222598]
[1646878075232,0.029168,2670.2,2670.0,0.00587121]
[1646878075233,1.38223649,2670.2,2670.0,0.00587121]
[1646878075438,1.01950998,2670.1,2670.0,0.00587121]
[1646878075840,1.01950998,2670.1,2669.9,0.00927329]
[1646878076039,1.0,2670.0,2669.9,0.00927329]
[1646878076237,2.4,2669.9,2669.6,0.00148387]
[1646878076540,0.966588,2669.7,2669.3,0.00556519]
[1646878076742,0.966588,2669.7,2669.1,0.67811216]
[1646878076743,0.445,2669.9,2669.1,3.7]
[1646878076939,2.1916,2670.0,2669.7,1.65674132]
[1646878077140,1.1916,2670.0,2669.9,0.09056442]
[1646878077737,1.1916,2670.0,2669.9,0.98178934]
[1646878078037,1.1916,2670.0,2669.9,0.09056442]
[1646878078840,1.21106,2670.0,2669.9,0.09056442]
[1646878079078,1.214155,2670.0,2669.9,0.09056442]
[1646878079276,1.1916,2670.0,2669.9,0.09056442]
[1646878079479,1.206802,2670.0,2669.9,0.09056442]
[1646878079878,1.1916,2670.0,2669.9,0.09056442]
[1646878080484,0.014001,2670.1,2670.0,3.2]
[1646878080684,0.014001,2670.2,2670.1,0.08552825]
[1646878080884,0.55868693,2670.4,2670.1,0.08552825]
[1646878080885,0.014001,2670.3,2670.1,0.08552825]
[1646878081093,0.58785493,2670.4,2670.1,0.08552825]
[1646878081886,0.58785493,2670.4,2670.1,3.58552825]
[1646878082087,2.69763504,2671.1,2670.2,0.3691]
[1646878082088,0.55533504,2671.1,2670.2,0.3691]
[1646878082287,0.55533504,2671.1,2670.4,0.06968376]
[1646878083139,1.11372429,2670.9,2670.4,0.06968376]
[1646878083342,0.93688,2670.8,2670.4,0.06968376]
[1646878083544,0.93688,2670.8,2670.5,0.00930984]
[1646878084242,0.93688,2670.8,2670.2,0.07127634]
[1646878084642,0.93688,2670.8,2670.4,0.00828606]
[1646878085448,0.93688,2670.8,2670.2,0.07127634]
[1646878085647,0.93688,2670.8,2670.3,0.00828621]
[1646878086675,0.93688,2670.8,2670.2,0.07127634]
[1646878086875,0.93688,2670.8,2670.3,0.00828637]
[1646878087876,0.93688,2670.8,2670.2,0.07127634]
[1646878088076,0.93688,2670.8,2670.3,0.00748753]
[1646878089078,0.93688,2670.8,2670.2,0.07127634]
[1646878089279,0.93688,2670.8,2670.3,0.00748753]
[1646878090328,0.93688,2670.8,2670.2,0.07127634]
[1646878090532,0.93688,2670.8,2670.3,0.00748753]
[1646878090730,0.93688,2670.8,2670.4,1.55257778]
[1646878090929,0.93688,2670.8,2670.5,0.07603716]
[1646878091129,0.93688,2670.8,2670.6,1.55257778]
[1646878091329,0.93688,2670.8,2670.7,0.07798585]
[1646878091535,0.93688,2670.8,2670.7,1.63056363]
[1646878091731,1.23688,2670.8,2670.7,1.55257778]
[1646878092130,1.23688,2670.8,2670.6,1.55257778]
[1646878092934,1.23688,2670.8,2670.4,0.00766284]
[1646878092935,1.87399,2670.7,2670.4,0.00766284]
[1646878093131,1.87399,2670.7,2670.5,1.55266286]
[1646878093332,1.87399,2670.7,2670.5,1.64291112]
[1646878093532,1.87399,2670.7,2670.6,1.55266286]
[1646878094080,2.23688,2670.8,2670.6,1.55266286]
[1646878094081,1.23688,2670.8,2670.6,1.55266286]
[1646878094477,1.23688,2670.8,2670.5,0.06889338]
[1646878094677,1.23688,2670.8,2670.6,1.5526436]
[1646878095277,1.23688,2670.8,2670.7,1.5526436]
[1646878095482,1.23688,2670.8,2670.6,1.5526436]
[1646878095984,0.93688,2670.8,2670.6,1.5526436]
[1646878096183,3.42906504,2671.1,2670.7,0.08370272]
[1646878096382,2.42906504,2671.1,2670.8,1.5526436]
[1646878096588,3.72906504,2671.1,2670.8,1.5526436]
[1646878096786,3.72906504,2671.1,2670.4,0.00762419]
[1646878096787,1.87389,2670.9,2670.4,0.00762419]
[1646878096983,1.87389,2670.9,2670.5,1.5526751]
[1646878097185,2.17389,2670.9,2670.6,0.07774202]
[1646878097382,0.93691,2670.8,2670.7,1.5526751]
[1646878097583,1.55533504,2671.1,2670.7,1.5526751]
[1646878097846,0.55533504,2671.1,2670.8,0.08758066]
[1646878098038,0.55533504,2671.1,2670.4,0.00762419]
[1646878098237,0.55533504,2671.1,2670.5,1.55253134]
[1646878098438,0.55533504,2671.1,2670.6,0.08044845]
[1646878098640,0.55533504,2671.1,2670.7,1.55253134]
[1646878098838,0.55533504,2671.1,2670.8,1.55253134]
[1646878099141,2.42906504,2671.1,2670.5,0.09262734]
[1646878099337,2.42906504,2671.1,2670.7,0.07106538]
[1646878099538,2.42906504,2671.1,2670.8,1.55259187]
[1646878099739,2.72906504,2671.1,2670.8,1.55259187]
[1646878100136,3.72906504,2671.1,2670.8,1.55259187]
[1646878100942,3.72906504,2671.1,2670.8,0.44673961]
[1646878102184,3.72906504,2671.1,2670.7,0.07106538]
[1646878102384,0.93702,2670.8,2670.1,0.0770963]
[1646878102586,0.93702,2670.8,2670.1,0.00763045]
[1646878102587,1.23702,2670.8,2670.1,0.00763045]
[1646878102787,1.23702,2670.8,2669.7,1.73090964]
[1646878102788,2.99149491,2670.6,2669.7,1.73090964]
[1646878102987,1.16770492,2670.2,2669.7,1.04771251]
[1646878103185,1.16770492,2670.2,2669.7,0.98371172]
[1646878103186,4.58039116,2670.2,2669.7,0.98371172]
[1646878103387,0.98721954,2670.1,2669.7,0.98371172]
[1646878103687,0.04365191,2670.0,2669.7,0.98371172]
[1646878104088,0.04365191,2670.0,2669.7,0.30716512]
[1646878105229,1.2373,2670.1,2669.7,0.30716512]
[1646878105633,1.0,2669.8,2669.7,0.30716512]
[1646878105834,1.93739,2669.8,2669.7,0.30716512]
[1646878106035,3.5,2669.7,2668.9,0.011667]
[1646878106235,0.04909582,2669.6,2668.6,0.69536255]
[1646878106433,0.04909582,2669.6,2669.4,0.00136805]
[1646878106632,0.04909582,2669.6,2668.2,6.41947278]
[1646878106633,3.4,2669.5,2668.2,6.41947278]
[1646878106832,1.21336552,2669.3,2668.4,0.99669601]
[1646878107036,1.21336552,2669.3,2668.2,1.68247278]
[1646878107037,0.93775,2669.1,2668.2,1.68247278]
[1646878107237,0.93775,2669.1,2667.8,2.32930971]
[1646878107238,2.0,2668.9,2667.8,2.32930971]
[1646878107432,2.0,2668.9,2667.5,0.89545494]
[1646878107433,0.49796257,2668.8,2667.5,0.89545494]
[1646878107634,0.04345555,2668.7,2667.4,2.13817258]
[1646878107833,0.04345555,2668.7,2667.5,0.07179755]
[1646878108034,0.04345555,2668.7,2667.6,1.10801729]
[1646878108234,0.89704309,2668.4,2667.2,1.24760856]
[1646878108435,0.93811,2667.8,2667.2,1.24760856]
[1646878108635,1.20130099,2667.9,2667.2,1.24760856]
[1646878108992,1.50130099,2667.9,2666.8,12.98478006]
[1646878109281,1.50130099,2667.9,2667.0,1.20510054]
[1646878109883,0.93811,2667.8,2667.1,0.00216295]
[1646878110283,0.9381523,2667.6,2667.1,0.00216295]
[1646878110485,0.3,2667.5,2667.1,0.00216295]
[1646878110685,0.3,2667.5,2667.0,1.20510054]
[1646878110887,0.3,2667.5,2667.3,0.01207]
[1646878111085,0.3,2667.6,2667.3,0.01207]
[1646878111285,1.23795,2667.8,2667.3,0.01207]
[1646878111493,1.23795,2667.8,2667.1,0.00720982]
[1646878111494,0.9381227,2667.7,2667.1,0.00720982]
[1646878111688,0.3,2667.6,2667.1,0.00720982]
[1646878111885,0.25,2667.6,2667.1,0.00720982]
[1646878112088,0.25,2667.6,2666.8,0.01072512]
[1646878112089,0.93803,2667.5,2666.8,0.01072512]
[1646878112486,1.0,2667.4,2666.9,0.01186]
[1646878112734,1.0,2667.4,2667.3,0.88924579]
[1646878113130,1.0,2667.4,2666.9,0.01186]
[1646878113734,1.3,2667.4,2666.9,0.01186]
[1646878113936,0.93816,2667.2,2666.8,0.01072512]
[1646878114137,0.93816,2667.2,2666.3,0.011667]
[1646878114138,3.5,2667.1,2666.3,0.011667]
[1646878114333,3.5,2667.1,2666.0,6.62001904]
[1646878114334,1.03283969,2666.8,2666.0,6.62001904]
[1646878114533,1.0,2666.1,2665.5,2.8222]
[1646878114735,1.0,2666.1,2665.2,1.18026]
[1646878114938,1.0,2666.1,2665.1,0.011667]
[1646878114939,1.0,2666.1,2665.6,0.04490546]
[1646878115134,1.0,2666.9,2665.6,0.05745746]
[1646878115135,0.9384646,2666.8,2665.6,0.05745746]
[1646878115336,1.87661,2667.0,2666.2,0.012854]
[1646878115537,0.85731247,2667.2,2666.2,0.012854]
[1646878115736,0.85731247,2667.2,2666.7,0.012713]
[1646878115936,0.55731247,2667.2,2666.7,0.97453308]
[1646878116237,1.0,2667.7,2666.7,0.97453308]
[1646878116499,1.0,2667.5,2666.7,0.97453308]
[1646878116690,1.3,2667.7,2666.7,0.97453308]
[1646878116886,1.3,2667.7,2666.7,0.98630908]
[1646878116887,0.3,2667.5,2666.7,0.98630908]
[1646878117088,0.93806,2667.4,2666.7,0.97453308]
[1646878117387,1.23806,2667.4,2666.7,0.97453308]
[1646878117593,1.23806,2667.4,2666.3,0.04092649]
[1646878117790,1.8765,2667.2,2666.3,0.04092649]
[1646878117988,2.1765,2667.2,2666.3,0.04092649]
[1646878118187,0.93841,2666.7,2665.7,9.77389349]
[1646878118387,0.3,2666.7,2665.8,0.04376861]
[1646878118588,2.43607822,2666.8,2665.8,1.16352303]
[1646878118788,1.0,2666.5,2665.8,1.16352303]
[1646878118989,1.0,2666.5,2665.8,0.04376861]
[1646878118990,1.87684,2666.5,2665.8,0.04376861]
[1646878119190,2.8156527,2666.4,2665.8,0.04376861]
[1646878119390,0.93842,2666.4,2665.8,0.04376861]
[1646878119592,1.93842,2666.4,2665.8,0.04376861]
[1646878119791,0.93842,2666.4,2665.8,0.04376861]
[1646878119990,0.93842,2666.4,2665.9,0.00690378]
[1646878120242,13.25516666,2667.3,2666.0,1.15249743]
[1646878120243,1.87656,2666.9,2666.0,1.15249743]
[1646878120445,0.19466666,2667.3,2666.3,0.012245]
[1646878120846,4.0655573,2667.9,2666.3,0.012245]
[1646878121047,0.5655573,2667.9,2666.3,0.457245]
[1646878121440,0.5655573,2667.9,2666.4,1.55447501]
[1646878121740,0.5655573,2667.9,2667.4,1.20470677]
[1646878122141,0.5597233,2667.9,2667.4,1.28534187]
[1646878122340,1.0,2667.7,2667.4,1.28534187]
[1646878122540,1.87598,2667.7,2667.4,1.28534187]
[1646878123340,2.17598,2667.7,2667.4,1.28534187]
[1646878123542,2.17598,2667.7,2667.5,0.07520322]
[1646878123842,2.17598,2667.7,2667.3,0.00690015]
[1646878124294,2.17598,2667.7,2666.8,0.07881769]
[1646878124493,0.93803,2667.5,2667.0,0.00466782]
[1646878124693,0.93803,2667.5,2667.2,0.00614126]
[1646878124893,1.23803,2667.5,2667.2,0.93057291]
[1646878125094,1.23803,2667.5,2667.3,0.07810099]
[1646878125299,0.93803,2667.5,2667.4,0.012961]
[1646878125502,2.07064885,2668.2,2667.3,0.07810099]
[1646878125503,1.68372809,2668.2,2667.3,0.07810099]
[1646878125698,1.48905304,2668.2,2667.4,0.384175]
[1646878125895,1.48905304,2668.2,2667.4,0.07200338]
[1646878126102,3.55118238,2668.1,2667.1,0.00614149]
[1646878126295,0.05118238,2668.1,2667.1,0.00614149]
[1646878126694,0.05118238,2668.1,2666.5,11.8274]
[1646878126695,0.93806,2667.8,2666.5,11.8274]
[1646878126894,0.93806,2667.8,2666.6,0.012056]
[1646878127095,2.1959302,2667.8,2667.3,0.00614103]
[1646878127936,1.23806,2667.8,2666.5,9.9249]
[1646878128133,0.93806,2667.8,2667.3,0.00690015]
[1646878128337,2.81451,2667.7,2667.3,0.00690015]